bitfinex-derivatives/quotes_ETHF0:USTF0_20240922
["timestamp","ask_amount","ask_price","bid_price","bid_amount"]
[1727045837257,0.96578,2588.7,2588.0,2.92]
[1727045837655,0.38636,2588.4,2588.0,2.92]
[1727045837858,0.38635,2588.5,2588.0,2.92]
[1727045838157,0.405,2588.9,2588.4,6.51414]
[1727045838351,0.96544,2589.6,2588.8,6.1278]
[1727045838552,0.38623,2589.3,2588.8,6.1278]
[1727045838952,0.3749,2589.5,2588.9,0.38627]
[1727045839152,0.3749,2589.5,2589.1,3.2078]
[1727045839351,0.2,2590.0,2589.2,2.92]
[1727045839563,0.2,2590.0,2589.5,3.2078]
[1727045839858,5.23483,2589.9,2589.3,2.92]
[1727045840052,0.38619,2589.5,2589.3,2.92]
[1727045840252,0.38618,2589.6,2589.3,2.92]
[1727045840449,0.396,2589.8,2589.3,2.92]
[1727045840450,0.38619,2589.5,2589.3,2.92]
[1727045840661,0.3862,2589.5,2589.3,2.92]
[1727045840853,3.8616,2589.4,2589.3,2.92]
[1727045841057,0.38618,2589.6,2589.3,2.92]
[1727045841457,0.38619,2589.5,2589.3,2.92]
[1727045841655,0.38619,2589.6,2589.3,2.92]
[1727045841855,0.396,2589.8,2589.3,2.92]
[1727045842157,0.78215,2589.8,2589.3,2.92]
[1727045842352,0.2,2590.0,2589.6,2.92]
[1727045842665,0.38593,2591.3,2590.7,0.386]
[1727045842959,0.96466,2591.7,2591.1,2.92]
[1727045842960,0.4083,2591.7,2591.1,2.92]
[1727045843159,3.2078,2591.5,2591.1,2.92]
[1727045843571,3.2078,2592.2,2591.4,3.5937]
[1727045843865,3.2078,2592.2,2591.2,8.25200869]
[1727045843866,0.96451,2592.1,2591.2,8.25200869]
[1727045844059,3.2078,2592.2,2590.8,3.9958]
[1727045844060,0.38593,2591.3,2590.8,3.9958]
[1727045844362,1.37274,2592.3,2590.9,6.7792]
[1727045844363,3.2078,2591.9,2590.9,6.7792]
[1727045844561,0.96455,2592.0,2591.1,3.2078]
[1727045845068,0.38587,2591.7,2591.1,3.2078]
[1727045845266,3.2078,2592.2,2591.1,3.2078]
[1727045845561,0.4083,2592.3,2591.4,3.2078]
[1727045845765,0.38582,2592.0,2591.4,3.2078]
[1727045845960,0.38581,2592.1,2591.4,3.2078]
[1727045846264,0.4083,2592.3,2591.4,3.2078]
[1727045846966,0.3898,2592.5,2591.7,2.92]
[1727045847161,0.38583,2592.0,2591.4,3.2078]
[1727045847354,3.2078,2592.6,2591.4,3.2078]
[1727045847663,0.38583,2591.9,2591.4,3.2078]
[1727045847859,0.38583,2591.9,2591.3,2.92]
[1727045848067,0.38585,2591.8,2591.3,2.92]
[1727045848265,0.96437,2592.5,2591.3,2.92]
[1727045848465,0.38582,2592.0,2591.3,2.92]
[1727045848655,3.2078,2592.6,2591.7,2.92]
[1727045848857,0.96437,2592.5,2591.2,3.2078]
[1727045849064,0.96437,2592.5,2591.2,11.20932896]
[1727045849261,0.38586,2591.7,2591.4,2.92]
[1727045849462,0.38586,2591.7,2591.2,3.2078]
[1727045849666,3.2078,2592.3,2591.2,3.2078]
[1727045849858,0.38589,2591.6,2591.2,3.2078]
[1727045850167,0.38592,2591.3,2591.2,3.2078]
[1727045850468,3.2078,2591.7,2590.8,3.9958]
[1727045850764,3.2078,2591.7,2591.0,2.92]
[1727045850970,0.3784,2591.9,2591.0,2.92]
[1727045851159,0.38583,2591.9,2591.3,2.92]
[1727045851361,0.3778,2592.2,2591.3,2.92]
[1727045851560,0.3778,2592.2,2591.1,3.2078]
[1727045851561,0.38589,2591.6,2591.1,3.2078]
[1727045851762,0.3859,2591.5,2591.1,3.2078]
[1727045852065,0.38586,2591.8,2591.1,3.2078]
[1727045852370,0.38584,2591.9,2591.1,3.59374]
[1727045852669,3.2078,2592.1,2591.4,3.2078]
[1727045852865,0.38578,2592.3,2591.7,6.1278]
[1727045853169,0.3784,2592.5,2591.7,6.1278]
[1727045853463,0.3858,2592.2,2591.7,2.92]
[1727045853658,0.3858,2592.2,2591.7,6.1278]
[1727045854261,0.38578,2592.3,2591.7,6.1278]
[1727045854455,0.19753072,2593.0,2591.6,0.3877]
[1727045854456,0.96418,2593.0,2592.2,3.2078]
[1727045854661,3.2078,2593.1,2592.2,3.2078]
[1727045854662,0.3857,2592.8,2592.2,3.2078]
[1727045855072,3.2078,2593.1,2592.2,3.2078]
[1727045855458,0.3857,2592.8,2592.2,3.2078]
[1727045855766,0.38568,2593.0,2592.5,3.2078]
[1727045856070,0.96398,2593.6,2591.8,3.2078]
[1727045856071,3.2078,2593.1,2591.8,3.2078]
[1727045856268,3.2078,2592.9,2591.8,3.2078]
[1727045856469,0.3985,2592.8,2591.8,5.7978]
[1727045856763,0.38583,2591.9,2591.8,3.2078]
[1727045856965,0.38581,2592.1,2591.8,3.2078]
[1727045857173,3.2078,2592.5,2591.8,5.7978]
[1727045857365,0.3985,2592.8,2591.8,5.7978]
[1727045857767,0.38583,2591.9,2591.8,3.2078]
[1727045858266,0.9644,2592.4,2591.8,3.2078]
[1727045858467,0.3858,2592.2,2591.8,3.2078]
[1727045858673,3.2078,2592.6,2591.8,3.2078]
[1727045858873,0.7771,2592.8,2591.8,3.2078]
[1727045858874,0.38575,2592.5,2591.8,3.2078]
[1727045859171,0.78978,2593.0,2592.2,0.38578]
[1727045859358,0.38568,2593.0,2592.3,0.3853]
[1727045859562,0.96407,2593.3,2592.3,0.3853]
[1727045859761,3.2078,2593.3,2592.3,0.3853]
[1727045859965,3.2078,2593.3,2592.4,3.2078]
[1727045859966,0.38568,2593.0,2592.4,3.2078]
[1727045860169,6.496,2593.4,2592.4,3.2078]
[1727045860365,0.96407,2593.3,2592.4,3.2078]
[1727045860565,0.38572,2592.7,2592.4,3.2078]
[1727045860772,3.2078,2593.3,2592.4,3.2078]
[1727045861068,0.38571,2592.7,2592.3,0.3853]
[1727045861268,3.2078,2592.8,2592.3,0.3853]
[1727045861461,0.96414,2593.1,2592.3,0.3853]
[1727045861662,0.38571,2592.8,2592.3,0.3853]
[1727045861866,3.2078,2593.3,2592.4,3.2078]
[1727045862068,0.38561,2593.5,2592.7,3.59351]
[1727045862374,0.38565,2593.2,2592.8,0.3721]
[1727045862570,0.38568,2592.9,2592.8,0.3721]
[1727045862764,0.38563,2593.3,2592.8,4.2289]
[1727045862967,0.3856,2593.5,2593.0,3.2078]
[1727045863184,1.10535427,2593.9,2592.8,0.3721]
[1727045863185,0.38568,2592.9,2592.8,0.3721]
[1727045863479,0.38568,2592.9,2592.1,2.92]
[1727045863480,0.38574,2592.6,2592.0,3.2078]
[1727045864275,0.96418,2593.0,2592.0,3.59361]
[1727045864572,0.96421,2592.9,2592.0,3.2078]
[1727045864971,0.38573,2592.7,2592.0,3.2078]
[1727045865270,0.76106,2593.1,2592.3,3.97887]
[1727045865474,0.38563,2593.3,2592.6,3.2078]
[1727045865670,3.2078,2593.5,2592.6,3.2078]
[1727045865973,0.38562,2593.4,2592.6,3.59352]
[1727045866365,0.38562,2593.4,2592.5,2.92]
[1727045866366,1.36894,2593.7,2592.7,3.2078]
[1727045866571,1.36894,2593.7,2592.4,0.3774]
[1727045866572,3.2078,2593.5,2592.4,3.97096]
[1727045866771,3.2078,2593.5,2592.7,3.2078]
[1727045867073,0.38568,2593.0,2592.7,3.2078]
[1727045867272,0.96408,2593.3,2592.7,3.2078]
[1727045867572,0.38566,2593.1,2592.4,3.5852]
[1727045867772,0.38566,2593.1,2592.4,3.97096]
[1727045867965,0.38567,2593.0,2592.4,3.5852]
[1727045868166,0.38571,2592.8,2592.4,3.5852]
[1727045868776,3.2078,2594.1,2592.7,3.2078]
[1727045869086,0.38562,2593.4,2593.0,3.2078]
[1727045869370,0.14432989,2593.9,2593.3,3.2078]
[1727045869574,3.2078,2594.1,2593.1,0.8054]
[1727045869575,0.96384,2594.0,2593.1,0.8054]
[1727045869867,0.38561,2593.4,2593.1,0.8054]
[1727045870378,0.3856,2593.5,2593.1,0.8054]
[1727045870671,0.38564,2593.2,2593.1,0.4063]
[1727045870975,3.34959191,2594.1,2593.1,0.4063]
[1727045871273,0.96381,2594.0,2593.1,0.4063]
[1727045871472,3.34959191,2594.1,2593.1,0.4063]
[1727045871782,0.38559,2593.6,2593.1,0.4063]
[1727045872272,3.34959191,2594.1,2593.1,0.4063]
[1727045872471,3.2078,2593.8,2593.1,0.4063]
[1727045872771,0.38559,2593.6,2593.1,0.4063]
[1727045873270,3.2078,2593.8,2593.1,0.4063]
[1727045873575,0.38559,2593.6,2593.1,0.7764]
[1727045873762,0.96381,2594.0,2593.1,0.4063]
[1727045873967,0.96381,2594.0,2593.5,3.2078]
[1727045874373,0.38559,2593.6,2593.5,3.2078]
[1727045874766,3.2078,2594.1,2593.5,3.2078]
[1727045875178,0.14594125,2594.2,2593.8,3.2078]
[1727045875475,0.38549,2594.2,2594.1,3.2078]
[1727045875673,3.2078,2594.7,2594.1,7.063]
[1727045875882,0.38544,2594.6,2594.0,3.2078]
[1727045876074,3.2078,2595.4,2594.4,3.2078]
[1727045876373,0.96356,2594.7,2594.1,3.2078]
[1727045876573,3.2078,2594.3,2593.9,0.7796]
[1727045876779,0.38552,2594.0,2593.9,0.3834]
[1727045876970,0.38549,2594.3,2593.9,0.3834]
[1727045877170,0.96362,2594.5,2593.9,0.3834]
[1727045877368,0.3855,2594.1,2593.9,0.3834]
[1727045877572,0.38552,2594.0,2593.9,0.3834]
[1727045877883,0.3855,2594.2,2593.9,4.2386]
[1727045878176,0.3855,2594.1,2593.9,0.3834]
[1727045878377,0.96366,2594.4,2593.8,3.2078]
[1727045878576,0.96375,2594.2,2593.5,3.2078]
[1727045878774,0.38558,2593.6,2593.5,3.2078]
[1727045878970,0.96369,2594.3,2593.5,3.2078]
[1727045879278,0.7496,2594.6,2593.2,4.0115]
[1727045879279,0.96389,2593.8,2593.2,4.0115]
[1727045879573,0.96381,2594.0,2593.2,3.6067]
[1727045879775,0.38562,2593.3,2593.2,3.6067]
[1727045879966,0.38562,2593.3,2592.8,3.2078]
[1727045880370,0.96388,2593.8,2592.9,3.8568]
[1727045880570,0.38564,2593.2,2592.8,3.2078]
[1727045880769,0.96401,2593.5,2592.8,3.2078]
[1727045880770,0.96392,2593.7,2592.8,3.2078]
[1727045880971,0.38564,2593.2,2592.8,3.2078]
[1727045881173,0.96392,2593.7,2592.8,3.2078]
[1727045881371,0.96399,2593.5,2592.8,3.2078]
[1727045881566,0.38565,2593.2,2592.8,3.2078]
[1727045881770,0.38567,2593.0,2592.8,3.2078]
[1727045881967,0.38566,2593.1,2592.8,3.2078]
[1727045882177,0.38565,2593.2,2592.8,3.2078]
[1727045882375,0.38565,2593.2,2593.1,3.2078]
[1727045882570,0.38563,2593.3,2593.1,3.2078]
[1727045883083,4.96995,2593.9,2593.1,3.2078]
[1727045883084,0.38564,2593.2,2593.1,3.2078]
[1727045883375,0.38564,2593.2,2592.5,0.3989]
[1727045883376,0.38571,2592.8,2592.6,3.2078]
[1727045883779,0.38571,2592.7,2592.6,3.2078]
[1727045884083,4.0061,2593.9,2592.6,3.2078]
[1727045884286,0.38566,2593.1,2592.6,3.2078]
[1727045884681,0.38568,2593.0,2592.6,3.2078]
[1727045885384,0.38566,2593.1,2592.7,3.8568]
[1727045885678,0.38567,2593.0,2592.6,3.2078]
[1727045885983,3.6169,2593.9,2593.4,0.38561]
[1727045886177,0.38555,2593.8,2593.5,3.6133]
[1727045886380,0.38558,2593.6,2593.5,3.6133]
[1727045886881,1.34953,2593.6,2593.5,3.2078]
[1727045887084,1.34953,2593.6,2593.1,3.2078]
[1727045887085,0.38564,2593.2,2593.1,3.2078]
[1727045887275,0.38563,2593.3,2593.1,3.2078]
[1727045887476,0.38564,2593.2,2593.1,3.2078]
[1727045887777,0.38563,2593.3,2593.1,3.2078]
[1727045887978,0.38561,2593.4,2593.1,3.2078]
[1727045888177,0.38558,2593.6,2593.2,0.38563]
[1727045888373,0.3919,2593.8,2593.4,3.2078]
[1727045888573,0.38556,2593.8,2593.4,3.2078]
[1727045888779,0.38556,2593.8,2593.3,6.776]
[1727045888780,0.38555,2593.8,2593.7,3.2078]
[1727045889481,0.98656369,2594.2,2593.1,3.59344]
[1727045889679,0.96377,2594.1,2593.1,3.2078]
[1727045889881,0.3856,2593.5,2593.2,8.25102512]
[1727045890083,0.3856,2593.5,2593.3,3.856]
[1727045890273,0.98656369,2594.2,2593.2,8.25102512]
[1727045890274,0.38562,2593.3,2593.2,8.25102512]
[1727045890480,0.38564,2593.2,2593.1,3.2078]
[1727045890678,0.38564,2593.2,2593.1,7.0638]
[1727045891076,1.50702924,2594.0,2593.1,7.0638]
[1727045891077,0.96381,2594.0,2593.4,0.38561]
[1727045891391,2.97110004,2594.3,2593.8,3.2078]
[1727045891392,0.96369,2594.3,2593.8,3.2078]
[1727045891588,0.38557,2593.7,2593.5,3.2078]
[1727045891975,0.38556,2593.8,2593.5,3.2078]
[1727045892391,0.96369,2594.3,2593.6,3.8552]
[1727045892588,0.96369,2594.3,2593.5,3.2078]
[1727045892589,0.38558,2593.6,2593.5,3.2078]
[1727045893585,3.9881,2594.4,2593.5,15.6538]
[1727045893586,1.76686369,2594.4,2593.5,15.6538]
[1727045893892,0.38551,2594.1,2593.9,3.2078]
[1727045894081,0.38545,2594.5,2594.1,0.3855]
[1727045894281,0.38545,2594.5,2594.2,3.6027]
[1727045894482,1.76972,2595.1,2594.6,0.38542]
[1727045894483,0.409,2595.1,2594.6,0.38542]
[1727045894683,2.40717004,2595.4,2594.3,2.59]
[1727045894684,0.98656369,2595.4,2594.5,3.2078]
[1727045894884,0.3854,2594.9,2594.5,3.2078]
[1727045895084,0.38541,2594.8,2594.5,3.2078]
[1727045895384,0.38543,2594.6,2594.5,3.2078]
[1727045895694,0.38544,2594.6,2594.2,0.3949]
[1727045895882,0.98656369,2595.1,2594.3,3.8544]
[1727045896087,0.96347,2594.9,2594.2,0.3949]
[1727045896288,0.38545,2594.5,2594.2,0.3949]
[1727045896486,0.38546,2594.4,2594.2,0.3949]
[1727045896887,0.38548,2594.3,2594.1,3.2078]
[1727045897186,0.38545,2594.5,2594.1,3.2078]
[1727045898191,0.8159,2594.8,2594.1,3.2078]
[1727045898381,0.38545,2594.5,2594.4,3.2078]
[1727045898787,0.38545,2594.5,2593.5,3.5867]
[1727045898788,0.38554,2593.9,2593.5,3.5867]
[1727045898990,0.96366,2594.4,2593.8,3.2078]
[1727045899187,2.19996369,2594.8,2594.1,3.2078]
[1727045899486,2.19996369,2594.8,2593.6,8.22491776]
[1727045899487,0.38553,2594.0,2593.7,3.2078]
[1727045899695,0.96369,2594.3,2593.7,3.2078]
[1727045899988,0.98656369,2594.4,2593.7,3.2078]
[1727045900388,0.3855,2594.2,2593.7,3.2078]
[1727045900781,0.98656369,2594.6,2593.7,3.2078]
[1727045900991,0.38547,2594.4,2594.0,3.2078]
[1727045901393,0.38545,2594.5,2594.1,3.8544]
[1727045901586,0.38545,2594.5,2594.1,0.4237]
[1727045901791,1.80246369,2594.8,2594.1,0.4237]
[1727045902091,0.38545,2594.5,2594.3,3.2078]
[1727045902299,0.8159,2594.8,2594.3,3.2078]
[1727045902495,1.37771,2595.1,2594.6,3.2078]
[1727045902496,0.98656369,2595.1,2594.6,3.2078]
[1727045902697,4.17114,2595.3,2593.8,2.59]
[1727045902698,0.98656369,2595.3,2594.9,3.2078]
[1727045902890,1.50702924,2595.5,2594.9,3.2078]
[1727045902891,0.98656369,2595.4,2594.9,3.2078]
[1727045903090,1.50702924,2595.5,2594.9,3.59318]
[1727045903091,1.37186369,2595.5,2594.9,3.59318]
[1727045903293,1.37185369,2595.6,2594.9,3.59318]
[1727045903594,0.98656369,2595.7,2594.9,3.59318]
[1727045903796,0.3853,2595.5,2595.2,3.2078]
[1727045903994,0.98656369,2595.7,2595.2,3.2078]
[1727045904190,0.38533,2595.3,2595.2,3.2078]
[1727045904494,1.94985369,2595.4,2594.8,3.2078]
[1727045904888,0.96332,2595.3,2594.8,3.2078]
[1727045905089,0.38539,2594.9,2594.8,3.2078]
[1727045905597,0.3986,2595.2,2594.8,13.0614]
[1727045905783,0.38539,2594.9,2594.8,3.2078]
[1727045905988,0.3986,2595.2,2594.8,3.2078]
[1727045906202,0.38536,2595.1,2594.8,3.2078]
[1727045906505,0.38538,2595.0,2594.8,3.2078]
[1727045906692,0.38539,2594.9,2594.8,3.2078]
[1727045906895,0.38538,2595.0,2594.8,3.2078]
[1727045907204,0.38538,2595.0,2593.4,0.96401]
[1727045907205,0.38551,2594.1,2593.9,3.2078]
[1727045907497,0.38551,2594.1,2593.2,0.7977]
[1727045907498,0.38557,2593.7,2593.2,0.7977]
[1727045907695,1.78990761,2594.0,2593.4,3.2078]
[1727045907900,0.38554,2593.9,2593.7,3.2078]
[1727045908101,0.38554,2593.9,2593.4,3.2078]
[1727045908298,0.38557,2593.7,2593.4,3.2078]
[1727045908493,0.38559,2593.5,2593.4,3.2078]
[1727045908690,0.38564,2593.2,2593.1,3.2078]
[1727045908890,0.96395,2593.6,2593.1,3.2078]
[1727045908891,0.38562,2593.3,2593.1,3.2078]
[1727045909190,0.38561,2593.4,2593.1,3.2078]
[1727045909390,1.00367761,2593.5,2593.1,3.2078]
[1727045909694,1.38929761,2593.4,2593.1,3.2078]
[1727045910000,0.38563,2593.3,2592.8,3.2078]
[1727045910297,1.50702924,2593.6,2593.2,3.2078]
[1727045910298,2.51070685,2593.6,2593.2,3.2078]
[1727045910506,0.38558,2593.6,2593.5,3.2078]
[1727045912296,1.38923761,2593.8,2593.5,3.2078]
[1727045912502,1.00367761,2593.9,2593.6,6.4452]
[1727045912691,1.00367761,2594.3,2593.8,3.2078]
[1727045912891,1.38914761,2594.4,2594.1,3.2078]
[1727045913096,1.00367761,2594.4,2594.1,3.2078]
[1727045913301,0.38549,2594.2,2594.1,3.2078]
[1727045913493,1.00367761,2594.4,2594.1,3.2078]
[1727045913494,1.38915761,2594.3,2594.1,3.2078]
[1727045913800,1.42537761,2594.5,2594.1,3.2078]
[1727045914304,0.38547,2594.4,2594.1,3.2078]
[1727045914604,1.38914761,2594.4,2594.1,3.2078]
[1727045914901,0.38548,2594.3,2594.1,3.2078]
[1727045915099,1.00367761,2594.4,2594.1,3.2078]
[1727045915394,0.38547,2594.4,2594.1,3.2078]
[1727045915598,0.38548,2594.3,2594.1,3.2078]
[1727045915798,0.38549,2594.2,2594.1,3.2078]
[1727045915997,1.00367761,2594.4,2594.1,3.2078]
[1727045916202,1.38914761,2594.4,2594.1,3.2078]
[1727045916495,0.38547,2594.4,2594.1,3.2078]
[1727045916702,1.38914761,2594.4,2594.1,3.2078]
[1727045916891,1.00367761,2594.5,2594.1,3.2078]
[1727045917096,0.38547,2594.4,2594.1,3.2078]
[1727045917301,1.00367761,2594.4,2594.1,3.2078]
[1727045917499,1.00367761,2594.3,2594.1,3.2078]
[1727045917702,1.00367761,2594.5,2594.1,3.2078]
[1727045917899,0.38548,2594.3,2594.1,3.2078]
[1727045918099,1.00367761,2594.5,2594.1,3.2078]
[1727045918401,1.00367761,2594.4,2594.1,3.2078]
[1727045918604,0.38549,2594.2,2594.1,3.2078]
[1727045919000,5.24436761,2594.2,2594.1,3.2078]
[1727045919604,5.20442,2594.2,2594.1,3.2078]
[1727045919913,0.38555,2593.8,2593.7,3.2078]
[1727045920202,0.96388,2593.8,2593.4,3.2078]
[1727045920404,1.00606851,2593.6,2593.4,3.2078]
[1727045920605,0.38558,2593.6,2593.4,3.2078]
[1727045921005,0.38559,2593.5,2593.4,3.2078]
[1727045921398,2.97118004,2594.0,2593.4,3.2078]
[1727045921399,1.00606851,2593.9,2593.4,3.2078]
[1727045921601,0.38555,2593.8,2593.7,3.2078]
[1727045921806,1.89465277,2593.8,2593.7,3.2078]
[1727045922006,5.74985277,2593.8,2593.7,3.2078]
[1727045922310,6.90663158,2593.8,2593.7,3.2078]
[1727045922506,6.90663015,2593.8,2593.7,3.2078]
[1727045922708,6.90663143,2593.8,2593.7,3.2078]
[1727045922905,6.90663143,2593.8,2593.2,3.2078]
[1727045922906,10.04809866,2593.8,2593.2,3.2078]
[1727045923105,0.38568,2593.0,2592.5,3.2078]
[1727045923310,0.38569,2592.9,2592.5,3.2078]
[1727045923503,0.3857,2592.8,2592.4,0.4245]
[1727045923699,1.00638635,2593.0,2592.7,3.2078]
[1727045923899,0.38567,2593.1,2592.7,3.2078]
[1727045924205,0.38567,2593.1,2593.0,3.2078]
[1727045924614,0.3857,2592.8,2592.7,3.2078]
[1727045925302,0.3857,2592.8,2592.4,3.2078]
[1727045925303,5.36617821,2592.8,2592.4,3.2078]
[1727045925507,1.00614306,2592.8,2592.4,3.2078]
[1727045925813,0.38571,2592.7,2592.4,3.2078]
[1727045926013,1.00614306,2592.8,2592.4,3.2078]
[1727045926014,0.38574,2592.6,2592.4,3.2078]
[1727045926308,0.38572,2592.7,2592.4,3.2078]
[1727045926501,0.38573,2592.6,2592.4,3.2078]
[1727045926903,0.38574,2592.5,2592.4,3.2078]
[1727045927200,0.38579,2592.2,2592.1,3.2078]
[1727045927506,0.79686,2592.4,2592.1,3.2078]
[1727045927703,0.79686,2592.4,2591.8,0.38584]
[1727045927704,0.38577,2592.3,2591.8,3.2078]
[1727045928114,0.79687,2592.4,2591.8,3.2078]
[1727045928409,0.38577,2592.3,2591.8,3.2078]
[1727045929013,0.38579,2592.2,2591.8,3.2078]
[1727045929710,1.37551,2592.4,2591.8,3.2078]
[1727045930013,0.38579,2592.2,2591.8,3.2078]
[1727045930607,0.38582,2592.0,2591.8,3.2078]
[1727045930803,0.4111,2592.4,2591.8,3.2078]
[1727045930804,0.38581,2592.1,2591.8,3.2078]
[1727045931009,0.38582,2592.0,2591.8,3.2078]
[1727045931312,0.38583,2591.9,2591.8,3.2078]
[1727045931716,0.412,2592.2,2591.8,3.2078]
[1727045931907,0.7978,2592.2,2591.8,3.2078]
[1727045932314,0.3858,2592.1,2591.8,3.2078]
[1727045933114,0.7978,2592.2,2591.8,3.2078]
[1727045933323,0.38581,2592.1,2591.8,3.2078]
[1727045933819,4.24421,2592.1,2591.8,3.2078]
[1727045934117,3.8584,2592.0,2591.4,3.2078]
[1727045934310,0.96455,2592.0,2591.4,3.2078]
[1727045934512,0.38582,2592.0,2591.7,3.2078]
[1727045934812,0.3858,2592.1,2591.7,3.2078]
[1727045935118,0.3858,2592.1,2591.3,0.3894]
[1727045935119,0.3858,2592.1,2592.0,3.2078]
[1727045935523,4.2434,2592.1,2592.0,3.2078]
[1727045936220,0.38585,2591.8,2591.7,3.2078]
[1727045936720,4.24425,2591.8,2591.7,3.2078]
[1727045937213,3.8584,2591.8,2591.7,3.2078]
[1727045937415,4.24425,2591.8,2591.7,3.2078]
[1727045937624,3.96651,2592.2,2591.7,3.2078]
[1727045937625,0.412,2592.2,2591.7,3.2078]
[1727045938006,0.38583,2592.0,2591.7,3.2078]
[1727045938313,0.38584,2591.9,2591.7,3.2078]
[1727045938511,3.8584,2592.1,2591.7,3.2078]
[1727045938819,3.8584,2592.0,2591.7,3.2078]
[1727045939021,1.37648,2592.2,2591.7,3.2078]
[1727045939022,0.38585,2591.8,2591.7,3.2078]
[1727045939412,4.24425,2591.8,2591.7,3.2078]
[1727045940014,0.412,2592.2,2591.7,3.2078]
[1727045940224,0.38568,2592.9,2592.3,0.38576]
[1727045940435,0.38577,2592.4,2592.1,3.2078]
[1727045940718,0.38579,2592.2,2592.1,3.2078]
[1727045940920,0.38579,2592.2,2591.8,3.2078]
[1727045940921,0.38581,2592.1,2591.8,3.2078]
[1727045941216,0.4202,2592.1,2591.8,3.2078]
[1727045941421,0.4287,2592.5,2591.8,3.2078]
[1727045941623,0.38578,2592.3,2591.8,3.2078]
[1727045941810,0.38577,2592.4,2591.8,3.59364]
[1727045942011,0.4287,2592.5,2591.8,3.2078]
[1727045942218,0.81445,2592.5,2592.1,3.2078]
[1727045942525,0.4202,2592.6,2592.1,3.2078]
[1727045942526,0.4202,2592.6,2592.4,3.2078]
[1727045943414,0.38571,2592.7,2592.4,3.2078]
[1727045943817,0.38572,2592.7,2592.4,3.2078]
[1727045944020,0.38571,2592.8,2592.4,3.2078]
[1727045944512,0.38572,2592.7,2592.4,3.2078]
[1727045945415,0.38562,2593.4,2592.7,0.3857]
[1727045945620,5.17747403,2593.8,2592.7,0.3857]
[1727045945621,0.3856,2593.5,2592.9,0.38568]
[1727045945825,0.38562,2593.3,2592.8,0.8564]
[1727045946023,0.96405,2593.4,2592.8,0.4309]
[1727045946219,0.4192,2593.6,2592.8,0.4309]
[1727045946220,0.38568,2592.9,2592.8,0.4309]
[1727045946419,0.3857,2592.8,2592.7,3.2078]
[1727045946720,0.96399,2593.5,2592.3,3.2078]
[1727045946721,0.38574,2592.6,2592.3,3.2078]
[1727045946926,0.38572,2592.7,2592.3,3.2078]
[1727045947113,0.38571,2592.8,2592.3,3.2078]
[1727045947312,0.4268,2592.9,2592.3,3.2078]
[1727045947529,0.4268,2592.9,2592.4,0.38576]
[1727045947820,0.81249,2592.9,2592.3,3.59356]
[1727045948230,0.3857,2592.8,2592.3,3.2078]
[1727045948415,0.81249,2592.9,2592.3,3.59357]
[1727045949220,0.3857,2592.8,2592.3,3.59357]
[1727045949616,0.81249,2592.9,2592.3,3.59357]
[1727045950225,0.4268,2592.9,2592.3,3.2078]
[1727045950525,0.38573,2592.6,2592.3,3.2078]
[1727045950827,0.38574,2592.5,2592.3,3.2078]
[1727045951030,0.38576,2592.4,2592.3,3.2078]
[1727045951327,0.38581,2592.1,2591.8,3.2078]
[1727045951534,0.38583,2591.9,2591.7,0.4355]
[1727045951725,0.38583,2592.0,2591.7,0.4355]
[1727045952032,0.4197,2592.2,2591.7,0.4355]
[1727045952236,0.38583,2592.0,2591.7,0.4355]
[1727045952633,0.4197,2592.2,2591.7,0.4355]
[1727045952934,0.38582,2592.0,2591.7,0.4355]
[1727045953827,0.4197,2592.2,2591.8,3.2078]
[1727045954022,0.4205,2592.4,2591.8,3.2078]
[1727045954023,0.80627,2592.4,2591.8,3.2078]
[1727045954218,0.4205,2592.4,2591.8,3.2078]
[1727045954419,0.38581,2592.1,2591.8,3.2078]
[1727045954826,0.4205,2592.4,2591.8,3.2078]
[1727045955033,0.4205,2592.4,2591.5,3.2078]
[1727045955034,0.38587,2591.7,2591.5,3.2078]
[1727045955435,0.38588,2591.6,2591.5,3.2078]
[1727045955625,0.38587,2591.7,2591.5,3.2078]
[1727045955825,1.97026403,2592.1,2591.5,3.2078]
[1727045956024,4.56026403,2592.1,2591.5,3.2078]
[1727045956227,0.38588,2591.7,2591.5,3.2078]
[1727045956429,4.56026403,2592.1,2591.5,3.2078]
[1727045956635,0.38599,2590.9,2590.8,3.2078]
[1727045956927,0.38599,2590.9,2590.3,3.2078]
[1727045957331,0.38596,2591.1,2590.4,0.38605]
[1727045957630,3.0071,2591.2,2590.0,0.8264]
[1727045957631,0.38594,2591.2,2590.6,3.2078]
[1727045957934,6.425,2591.3,2591.0,3.2078]
[1727045958229,0.4364,2591.5,2591.0,3.2078]
[1727045958432,0.8223,2591.5,2591.1,0.4064]
[1727045958631,4.2956,2591.5,2591.1,0.4064]
[1727045958933,0.38594,2591.2,2591.0,3.2078]
[1727045959833,3.8592,2591.2,2590.7,3.2078]
[1727045960026,0.38597,2591.0,2590.7,3.2078]
[1727045960438,0.386,2590.8,2590.7,3.2078]
[1727045960731,2.59,2590.9,2590.7,3.2078]
[1727045960934,0.386,2590.8,2590.7,3.2078]
[1727045961231,0.4163,2590.8,2590.7,3.2078]
[1727045961432,4.2763,2590.8,2590.7,3.2078]
[1727045961731,0.8023,2590.8,2590.7,3.2078]
[1727045962037,0.38597,2591.0,2590.7,3.2078]
[1727045962336,0.38598,2590.9,2590.7,3.2078]
[1727045962732,0.386,2590.8,2590.4,3.2078]
[1727045962926,3.78717272,2591.2,2590.4,3.2078]